fUSD/lending_fUSD_20250818
["ID","MTS","AMOUNT","RATE_DAILY","PERIOD"]
[380080573,1755531427413,-400.0,0.00030684,120]
[380080574,1755531427453,-1076.8,0.00030684,120]
[380080575,1755531427493,-400.0,0.00030684,120]
[380080576,1755531427537,-834.08,0.00030684,120]
[380080577,1755531427579,-1892.22,0.00030684,120]
[380080578,1755531427619,-400.0,0.00030684,120]
[380080579,1755531427660,-964.84,0.00030684,120]
[380080580,1755531427700,-1252.04,0.00030684,120]
[380080581,1755531427743,-6078.48,0.00030684,120]
[380080582,1755531427783,-400.0,0.00030684,120]
[380080583,1755531427826,-400.0,0.00030684,120]
[380080584,1755531427867,-577.43,0.00030684,120]
[380080585,1755531427908,-400.0,0.00030684,120]
[380080586,1755531427948,-400.0,0.00030684,120]
[380080587,1755531427987,-870.1,0.00030684,120]
[380080588,1755531428025,-400.0,0.00030684,120]
[380080589,1755531428066,-730.4,0.00030684,120]
[380080590,1755531428104,-400.0,0.00030684,120]
[380080591,1755531428147,-400.0,0.00030684,120]
[380080592,1755531428187,-1470.19,0.00030684,120]
[380080593,1755531428229,-368.72,0.00030684,120]
[380080594,1755531428272,-671.51,0.00030684,120]
[380080595,1755531428315,-3714.75,0.00030684,120]
[380080596,1755531428359,-400.0,0.00030684,120]
[380080597,1755531428401,-400.0,0.00030684,120]
[380080598,1755531428442,-400.0,0.00030684,120]
[380080599,1755531428483,-400.0,0.00030684,120]
[380080600,1755531428523,-2330.81,0.00030684,120]
[380080601,1755531428563,-400.0,0.00030684,120]
[380080602,1755531428602,-1142.14,0.00030684,120]
[380080603,1755531428640,-704.43,0.00030684,120]
[380080604,1755531428679,-563.4,0.00030684,120]
[380080605,1755531428720,-400.0,0.00030684,120]
[380080606,1755531428759,-2163.04,0.00030684,120]
[380080607,1755531428798,-400.0,0.00030684,120]
[380080608,1755531428839,-705.46,0.00030684,120]
[380080609,1755531428878,-471.82,0.00030684,120]
[380080610,1755531428919,-400.0,0.00030684,120]
[380080611,1755531428958,-6188.23,0.00030684,120]
[380080612,1755531428996,-1062.35,0.00030684,120]
[380080613,1755531429039,-400.0,0.00030684,120]
[380080614,1755531429081,-400.0,0.00030684,120]
[380080615,1755531429124,-956.27,0.00030684,120]
[380080616,1755531429166,-3649.46,0.00030684,120]
[380080617,1755531429207,-2576.98,0.00030684,120]
[380080618,1755531429251,-2010.89,0.00030684,120]
[380080619,1755531429292,-1158.42,0.00030684,60]
[380080620,1755531429333,-400.0,0.00030684,120]
[380080621,1755531429374,-400.0,0.00030684,120]
[380080622,1755531429416,-400.0,0.00030684,120]
[380080623,1755531429459,-585.53,0.00030684,120]
[380080624,1755531429501,-1994.69,0.00030684,120]
[380080625,1755531429545,-22410.16,0.00030684,120]
[380080626,1755531429587,-1434.92,0.00030684,120]
[380080627,1755531429627,-400.0,0.00030684,120]
[380080628,1755531429685,-916.76,0.00030684,120]
[380080629,1755531429792,-2418.8,0.00030684,120]
[380080630,1755531429836,-10916.68,0.00030684,120]
[380080631,1755531429877,-471.17,0.00030684,120]
[380080632,1755531429915,-400.0,0.00030684,120]
[380080633,1755531429956,-560.6,0.00030684,120]
[380080634,1755531429994,-918.16,0.00030684,120]
[380080635,1755531430032,-1668.98,0.00030684,120]
[380080636,1755531430071,-519.78,0.00030684,120]
[380080637,1755531430109,-539.87,0.00030684,120]
[380080638,1755531430147,-3130.45,0.00030684,120]
[380080639,1755531430185,-895.63,0.00030684,120]
[380080640,1755531430224,-666.03,0.00030684,120]
[380080641,1755531430264,-533.75,0.00030684,120]
[380080642,1755531430304,-438.94,0.00030684,120]
[380080643,1755531430346,-400.0,0.00030684,120]
[380080644,1755531430388,-400.0,0.00030684,120]
[380080645,1755531430431,-516.51,0.00030684,120]
[380080646,1755531430471,-400.0,0.00030684,120]
[380080647,1755531430510,-443.38,0.00030684,120]
[380080648,1755531430551,-526.74,0.00030684,120]
[380080649,1755531430790,-706.46,0.00030684,120]
[380080650,1755531430834,-3336.03,0.00030684,120]
[380080651,1755531430876,-837.38,0.00030684,120]
[380080652,1755531430916,-400.0,0.00030684,120]
[380080653,1755531430956,-1832.53,0.00030684,120]
[380080654,1755531430998,-407.46,0.00030684,120]
[380080655,1755531431040,-3758.38,0.00030684,120]
[380080656,1755531431081,-400.0,0.00030684,120]
[380080657,1755531431126,-7618.95,0.00030684,120]
[380080658,1755531431164,-777.9,0.00030684,120]
[380080659,1755531431205,-2909.39,0.00030684,120]
[380080660,1755531431251,-3090.16,0.00030684,120]
[380080661,1755531431294,-400.0,0.00030684,120]
[380080662,1755531431337,-972.28,0.00030684,120]
[380080663,1755531431378,-9090.3,0.00030684,120]
[380080664,1755531431419,-400.0,0.00030684,120]
[380080665,1755531431459,-479.89,0.00030684,120]
[380080666,1755531431505,-1238.0,0.00030684,120]
[380080667,1755531431548,-400.0,0.00030684,120]
[380080668,1755531431591,-400.0,0.00030684,120]
[380080669,1755531431633,-357.3,0.00030684,120]
[380080670,1755531431674,-1354.29,0.00030684,120]
[380080671,1755531431715,-976.37,0.00030684,120]
[380080672,1755531431756,-400.0,0.00030684,120]
[380080673,1755531431795,-400.0,0.00030684,120]
[380080674,1755531431836,-3402.14,0.00030684,120]
[380080675,1755531431876,-1206.51,0.00030684,120]
[380080676,1755531431915,-1034.91,0.00030684,120]
[380080677,1755531431957,-1103.25,0.00030684,120]
[380080678,1755531431997,-400.0,0.00030684,120]
[380080679,1755531432039,-400.0,0.00030684,120]
[380080680,1755531432079,-1090.28,0.00030684,120]
[380080681,1755531432119,-839.83,0.00030684,120]
[380080682,1755531432160,-761.94,0.00030684,120]
[380080683,1755531432200,-725.04,0.00030684,120]
[380080684,1755531432246,-400.0,0.00030684,120]
[380080685,1755531432290,-1534.15,0.00030684,120]
[380080686,1755531432341,-4326.76,0.00030684,120]
[380080687,1755531432388,-579.27,0.00030684,120]
[380080688,1755531432431,-615.92,0.00030684,120]
[380080689,1755531432474,-400.0,0.00030684,120]
[380080690,1755531432519,-3639.38,0.00030684,120]
[380080691,1755531432566,-400.0,0.00030684,120]
[380080692,1755531432613,-2038.58,0.00030684,120]
[380080693,1755531432657,-400.0,0.00030684,120]
[380080694,1755531432703,-2797.24,0.00030684,120]
[380080695,1755531432747,-683.2,0.00030684,120]
[380080696,1755531432791,-400.0,0.00030684,120]
[380080697,1755531432835,-400.0,0.00030684,120]
[380080698,1755531432878,-1718.05,0.00030684,120]
[380080699,1755531432922,-4182.51,0.00030684,120]
[380080700,1755531432965,-502.35,0.00030684,120]
[380080701,1755531433007,-400.0,0.00030684,120]
[380080702,1755531433050,-6295.11,0.00030684,120]
[380080703,1755531433093,-400.0,0.00030684,120]
[380080704,1755531433136,-400.0,0.00030684,120]
[380080705,1755531433181,-1427.56,0.00030684,120]
[380080706,1755531433223,-400.0,0.00030684,120]
[380080707,1755531433272,-619.94,0.00030684,120]
[380080708,1755531433318,-1488.52,0.00030684,120]
[380080709,1755531433364,-400.0,0.00030684,120]
[380080710,1755531433409,-411.17,0.00030684,120]
[380080711,1755531433452,-1735.42,0.00030684,120]
[380080712,1755531433496,-400.0,0.00030684,120]
[380080713,1755531433539,-400.0,0.00030684,120]
[380080714,1755531433580,-1080.28,0.00030684,120]
[380080715,1755531433622,-400.0,0.00030684,120]
[380080716,1755531433662,-400.0,0.00030684,120]
[380080717,1755531433709,-5508.55,0.00030684,120]
[380080718,1755531433751,-400.0,0.00030684,120]
[380080719,1755531433794,-400.0,0.00030684,120]
[380080720,1755531433838,-400.0,0.00030684,120]
[380080721,1755531433880,-400.0,0.00030684,120]
[380080722,1755531433925,-1050.76,0.00030684,120]
[380080723,1755531433970,-2870.81,0.00030684,120]
[380080724,1755531434014,-919.08,0.00030684,120]
[380080725,1755531434057,-1992.68,0.00030684,120]
[380080726,1755531434103,-400.0,0.00030684,120]
[380080727,1755531434147,-3684.7,0.00030684,120]
[380080728,1755531434192,-1715.67,0.00030684,120]
[380080729,1755531434239,-3062.51,0.00030684,120]
[380080730,1755531434286,-2026.02,0.00030684,120]
[380080731,1755531434333,-958.62,0.00030684,120]
[380080732,1755531434376,-6117.57,0.00030684,120]
[380080733,1755531434423,-477.15,0.00030684,120]
[380080734,1755531434469,-1281.34,0.00030684,120]
[380080735,1755531434515,-1697.43,0.00030684,120]
[380080736,1755531434562,-812.09,0.00030684,120]
[380080737,1755531434608,-5954.18,0.00030684,120]
[380080738,1755531434650,-400.0,0.00030684,120]
[380080739,1755531434692,-1273.16,0.00030684,120]
[380080740,1755531434734,-556.04,0.00030684,120]
[380080741,1755531434778,-1446.23,0.00030684,120]
[380080742,1755531434819,-400.0,0.00030684,120]
[380080743,1755531435418,-708.16,0.00030684,120]
[380080744,1755531435461,-402.03,0.00030684,120]
[380080745,1755531435502,-400.0,0.00030684,120]
[380080746,1755531435544,-701.46,0.00030684,120]
[380080747,1755531435587,-8688.61,0.00030684,120]
[380080748,1755531435629,-229.45,0.00030684,120]
[380080749,1755531435671,-238.45026033,0.00030684,120]
[380080750,1755531435714,-400.0,0.00030684,120]
[380080751,1755531435756,-1059.25,0.00030684,120]
[380080752,1755531435799,-9485.17,0.00030684,120]
[380080753,1755531435839,-2995.99,0.00030684,120]
[380080754,1755531435881,-400.0,0.00030684,120]
[380080755,1755531435925,-400.0,0.00030684,120]
[380080756,1755531435963,-3898.08,0.00030684,120]
[380080757,1755531436006,-2500.0,0.00030684,120]
[380080758,1755531436049,-463.18,0.00030684,120]
[380080759,1755531436090,-400.0,0.00030684,120]
[380080760,1755531436137,-400.0,0.00030684,120]
[380080761,1755531436180,-400.0,0.00030684,120]
[380080762,1755531436224,-400.0,0.00030684,120]
[380080763,1755531436270,-400.0,0.00030684,120]
[380080764,1755531436315,-400.0,0.00030684,120]
[380080765,1755531436360,-3602.65,0.00030684,120]
[380080766,1755531436405,-844.5,0.00030684,120]
[380080767,1755531436448,-969.02,0.00030684,120]
[380080768,1755531436493,-400.0,0.00030684,120]
[380080769,1755531436541,-1379.67,0.00030684,120]
[380080770,1755531436587,-559.7,0.00030684,120]
[380080771,1755531436642,-400.0,0.00030684,120]
[380080772,1755531436692,-4052.31,0.00030684,120]
[380080773,1755531436736,-1261.68,0.00030684,120]
[380080774,1755531436777,-3406.91,0.00030684,120]
[380080775,1755531436818,-400.0,0.00030684,120]
[380080776,1755531436860,-1616.51,0.00030684,120]
[380080777,1755531436903,-400.67,0.00030684,120]
[380080778,1755531436946,-400.0,0.00030684,120]
[380080779,1755531436987,-2301.52,0.00030684,120]
[380080780,1755531437035,-673.71,0.00030684,120]
[380080781,1755531437078,-3314.95,0.00030684,120]
[380080782,1755531437120,-400.0,0.00030684,120]
[380080783,1755531437162,-846.84,0.00030684,120]
[380080784,1755531437203,-400.0,0.00030684,120]
[380080785,1755531437248,-400.0,0.00030684,120]
[380080786,1755531437294,-1557.82,0.00030684,120]
[380080787,1755531437337,-1948.39,0.00030684,120]
[380080788,1755531437382,-4106.01,0.00030684,120]
[380080789,1755531437423,-400.0,0.00030684,120]
[380080790,1755531437468,-3340.57,0.00030684,120]
[380080791,1755531437511,-1407.02,0.00030684,120]
[380080792,1755531437555,-400.0,0.00030684,120]
[380080793,1755531437597,-400.0,0.00030684,120]
[380080794,1755531437638,-2747.68,0.00030684,120]
[380080795,1755531437679,-400.0,0.00030684,120]
[380080796,1755531437719,-400.0,0.00030684,120]
[380080797,1755531437760,-1434.13,0.00030684,120]
[380080798,1755531437801,-400.0,0.00030684,120]
[380080799,1755531437840,-400.0,0.00030684,120]
[380080800,1755531437882,-850.0,0.00030684,120]
[380080801,1755531437923,-400.0,0.00030684,120]
[380080802,1755531437961,-400.0,0.00030684,120]
[380080803,1755531438001,-400.0,0.00030684,120]
[380080804,1755531438046,-4244.93,0.00030684,120]
[380080805,1755531438089,-3700.85,0.00030684,120]
[380080806,1755531438132,-5715.15,0.00030684,120]
[380080807,1755531438176,-2075.1,0.00030684,120]
[380080808,1755531438223,-400.0,0.00030684,120]
[380080809,1755531438270,-447.89,0.00030684,120]
[380080810,1755531438321,-5032.54,0.00030684,120]
[380080811,1755531438372,-2009.78,0.00030684,120]
[380080812,1755531438417,-400.0,0.00030684,120]
[380080813,1755531438461,-400.0,0.00030684,120]
[380080814,1755531438506,-1625.31,0.00030684,120]
[380080815,1755531438551,-3227.4,0.00030684,120]
[380080816,1755531438597,-400.0,0.00030684,120]
[380080817,1755531438643,-3836.75,0.00030684,120]
[380080818,1755531438693,-403.61,0.00030684,120]
[380080819,1755531438739,-1015.35,0.00030684,120]
[380080820,1755531438797,-400.0,0.00030684,120]
[380080821,1755531438845,-878.57,0.00030684,120]
[380080822,1755531438892,-400.0,0.00030684,120]
[380080823,1755531438936,-400.0,0.00030684,120]
[380080824,1755531438980,-400.0,0.00030684,120]
[380080825,1755531439027,-400.0,0.00030684,120]
[380080826,1755531439074,-289.18727432,0.00030684,120]
[380080827,1755531439120,-400.0,0.00030684,120]
[380080828,1755531439170,-3315.79,0.00030684,120]
[380080829,1755531439216,-2099.09,0.00030684,120]
[380080830,1755531439265,-4030.37,0.00030684,120]
[380080831,1755531439313,-1233.5,0.00030684,120]
[380080832,1755531439359,-705.38,0.00030684,120]
[380080833,1755531439406,-5453.56,0.00030684,120]
[380080834,1755531439452,-806.02,0.00030684,120]
[380080835,1755531439497,-400.0,0.00030684,120]
[380080836,1755531439543,-444.13,0.00030684,120]
[380080837,1755531439588,-400.0,0.00030684,120]
[380080838,1755531439633,-400.0,0.00030684,120]
[380080839,1755531439679,-3567.66,0.00030684,120]
[380080840,1755531439724,-7803.58,0.00030684,120]
[380080841,1755531439769,-5074.82,0.00030684,120]
[380080842,1755531439818,-2022.84,0.00030684,120]
[380080843,1755531439861,-400.0,0.00030684,120]
[380080844,1755531439904,-2772.44,0.00030684,120]
[380080845,1755531439946,-1782.59,0.00030684,120]
[380080846,1755531439988,-400.0,0.00030684,120]
[380080847,1755531440028,-5987.69,0.00030684,120]
[380080848,1755531440070,-400.0,0.00030684,120]
[380080849,1755531440112,-2021.72,0.00030684,120]
[380080850,1755531440154,-3545.22,0.00030684,120]
[380080851,1755531440196,-1035.2,0.00030684,120]
[380080852,1755531440241,-1158.17,0.00030684,120]
[380080853,1755531440287,-400.0,0.00030684,120]
[380080854,1755531440330,-444.13,0.00030684,120]
[380080855,1755531440381,-400.0,0.00030684,120]
[380080856,1755531440425,-400.0,0.00030684,120]
[380080857,1755531440469,-400.0,0.00030684,120]
[380080858,1755531440521,-400.0,0.00030684,120]
[380080859,1755531440568,-10622.52,0.00030684,120]
[380080860,1755531440610,-5069.21,0.00030684,120]
[380080861,1755531440654,-1939.44,0.00030684,120]
[380080862,1755531440696,-400.0,0.00030684,120]
[380080863,1755531440738,-1598.75,0.00030684,120]
[380080864,1755531440852,-400.0,0.00030684,120]
[380080865,1755531440899,-574.59,0.00030684,120]
[380080866,1755531440944,-2705.71,0.00030684,120]
[380080867,1755531440985,-400.0,0.00030684,120]
[380080868,1755531441026,-1222.0,0.00030684,120]
[380080869,1755531441064,-1502.03,0.00030684,120]
[380080870,1755531441104,-1665.53,0.00030684,120]
[380080871,1755531441143,-400.0,0.00030684,120]
[380080872,1755531441201,-4073.2,0.00030684,120]
[380080873,1755531441262,-1118.02,0.00030684,120]
[380080874,1755531441317,-400.0,0.00030684,120]
[380080875,1755531441382,-1480.46,0.00030684,120]
[380080876,1755531441443,-6338.52,0.00030684,120]
[380080877,1755531441501,-400.0,0.00030684,120]
[380080878,1755531441564,-250.0,0.00030684,120]
[380080879,1755531441620,-3321.87,0.00030684,120]
[380080880,1755531441676,-400.0,0.00030684,120]
[380080881,1755531441733,-400.0,0.00030684,120]
[380080882,1755531441788,-4084.02,0.00030684,120]
[380080883,1755531441843,-1003.37,0.00030684,120]
[380080884,1755531441902,-400.0,0.00030684,120]
[380080885,1755531441958,-3029.46,0.00030684,120]
[380080886,1755531442017,-1616.2,0.00030684,120]
[380080887,1755531442072,-1028.03,0.00030684,120]
[380080888,1755531442128,-6964.04,0.00030684,120]
[380080889,1755531442183,-1168.63,0.00030684,120]
[380080890,1755531442237,-2409.07,0.00030684,120]
[380080891,1755531442295,-5581.76,0.00030684,120]
[380080892,1755531442349,-7916.38,0.00030684,120]
[380080893,1755531442404,-754.21,0.00030684,120]
[380080894,1755531442456,-400.0,0.00030684,120]
[380080895,1755531442510,-2936.4,0.00030684,120]
[380080896,1755531442564,-400.55,0.00030684,120]
[380080897,1755531442620,-400.0,0.00030684,120]
[380080898,1755531442674,-2357.35,0.00030684,120]
[380080899,1755531442726,-660.2,0.00030684,120]
[380080900,1755531442779,-400.0,0.00030684,120]
[380080901,1755531442830,-400.0,0.00030684,120]
[380080902,1755531442881,-400.0,0.00030684,120]
[380080903,1755531442935,-2694.67,0.00030684,120]
[380080904,1755531442986,-4615.71,0.00030684,120]
[380080905,1755531443035,-400.0,0.00030684,120]
[380080906,1755531443085,-400.0,0.00030684,120]
[380080907,1755531443137,-3717.83,0.00030684,120]
[380080908,1755531443190,-8387.28,0.00030684,120]
[380080909,1755531443248,-400.0,0.00030684,120]
[380080910,1755531443309,-4003.0,0.00030684,120]
[380080911,1755531443363,-1260.89,0.00030684,120]
[380080912,1755531443415,-400.0,0.00030684,120]
[380080913,1755531443467,-400.0,0.00030684,120]
[380080914,1755531443518,-941.75,0.00030684,120]
[380080915,1755531443585,-1390.18,0.00030684,120]
[380080916,1755531443634,-400.0,0.00030684,120]
[380080917,1755531443684,-4793.96,0.00030684,120]
[380080918,1755531443734,-655.59,0.00030684,120]
[380080919,1755531443789,-400.0,0.00030684,120]
[380080920,1755531443843,-400.0,0.00030684,120]
[380080921,1755531443895,-11607.13,0.00030684,120]
[380080922,1755531443948,-400.0,0.00030684,120]
[380080923,1755531444002,-408.39,0.00030684,120]
[380080924,1755531444056,-3700.28,0.00030684,120]
[380080925,1755531444111,-291.19514232,0.00030684,120]
[380080926,1755531444166,-1163.39,0.00030684,120]
[380080927,1755531444225,-400.0,0.00030684,120]
[380080928,1755531444283,-400.0,0.00030684,120]
[380080929,1755531444337,-400.0,0.00030684,120]
[380080930,1755531444386,-300.0,0.00030684,120]
[380080931,1755531444439,-1114.98,0.00030684,120]
[380080932,1755531444500,-1907.28,0.00030684,120]
[380080933,1755531444557,-568.77,0.00030684,120]
[380080934,1755531444611,-725.99,0.00030684,120]
[380080935,1755531444662,-1838.76,0.00030684,120]
[380080936,1755531444716,-400.0,0.00030684,120]
[380080937,1755531446053,-9202.82,0.00030684,120]
[380080938,1755531446145,-555.45,0.00030684,120]
[380080939,1755531446190,-400.0,0.00030684,120]
[380080940,1755531446266,-5329.35,0.00030684,120]
[380080941,1755531446348,-2646.49,0.00030684,120]
[380080942,1755531446393,-400.0,0.00030684,120]
[380080943,1755531446435,-3911.47,0.00030684,120]
[380080944,1755531446476,-400.0,0.00030684,120]
[380080945,1755531446519,-1930.43,0.00030684,120]
[380080946,1755531446568,-2981.2,0.00030684,120]
[380080947,1755531446611,-827.84,0.00030684,120]
[380080948,1755531446653,-400.0,0.00030684,120]
[380080949,1755531446696,-5155.41,0.00030684,120]
[380080950,1755531446739,-7220.18,0.00030684,120]
[380080951,1755531446781,-1480.93,0.00030684,120]
[380080952,1755531446825,-5598.96,0.00030684,120]
[380080953,1755531446868,-3838.65,0.00030684,120]
[380080954,1755531446910,-400.0,0.00030684,120]
[380080955,1755531446955,-4842.6,0.00030684,120]
[380080956,1755531446998,-674.65,0.00030684,120]
[380080957,1755531447042,-400.0,0.00030684,120]
[380080958,1755531447086,-470.54,0.00030684,120]
[380080959,1755531447128,-419.22332276,0.00030684,120]
[380080960,1755531447170,-5526.25,0.00030684,120]
[380080961,1755531447212,-1562.08,0.00030684,120]
[380080962,1755531447259,-400.0,0.00030684,120]
[380080963,1755531447305,-400.0,0.00030684,120]
[380080964,1755531447349,-643.28,0.00030684,120]
[380080965,1755531447392,-3131.67,0.00030684,120]
[380080966,1755531447435,-661.19,0.00030684,120]
[380080967,1755531447478,-3535.17,0.00030684,120]
[380080968,1755531447522,-400.0,0.00030684,120]
[380080969,1755531447567,-1425.38,0.00030684,120]
[380080970,1755531447610,-742.5,0.00030684,120]
[380080971,1755531447654,-1152.62,0.00030684,120]
[380080972,1755531447698,-400.0,0.00030684,120]
[380080973,1755531447741,-3298.01,0.00030684,120]
[380080974,1755531447781,-400.0,0.00030684,120]
[380080975,1755531447822,-432.33,0.00030684,120]
[380080976,1755531447864,-400.0,0.00030684,120]
[380080977,1755531447903,-400.0,0.00030684,120]
[380080978,1755531447946,-400.0,0.00030684,120]
[380080979,1755531447990,-3314.99,0.00030684,120]
[380080980,1755531448035,-11590.95,0.00030684,120]
[380080981,1755531448080,-400.0,0.00030684,120]
[380080982,1755531448123,-788.53,0.00030684,120]
[380080983,1755531448165,-400.0,0.00030684,120]
[380080984,1755531448206,-400.0,0.00030684,120]
[380080985,1755531448254,-950.22,0.00030684,120]
[380080986,1755531448302,-400.0,0.00030684,120]
[380080987,1755531448347,-400.0,0.00030684,120]
[380080988,1755531448391,-2202.28,0.00030684,120]
[380080989,1755531448433,-3523.87,0.00030684,120]
[380080990,1755531448477,-842.02,0.00030684,120]
[380080991,1755531448521,-1603.57636065,0.00030684,120]
[380080992,1755531481030,170.0,0.00010018,7]
[380080993,1755531540502,-3944.16,0.00030136,120]
[380080994,1755531540546,-1507.1,0.00030136,120]
[380080995,1755531540589,-400.0,0.00030136,120]
[380080996,1755531540634,-400.0,0.00030136,120]
[380080997,1755531540676,-400.0,0.00030136,120]
[380080998,1755531540718,-1866.07,0.00030136,120]
[380080999,1755531540759,-2135.37,0.00030136,120]
[380081000,1755531540799,-400.0,0.00030136,120]
[380081001,1755531540837,-400.0,0.00030136,120]
[380081002,1755531540888,-400.0,0.00030136,120]
[380081003,1755531540931,-400.0,0.00030136,120]
[380081004,1755531540970,-400.0,0.00030136,120]
[380081005,1755531541009,-3553.6,0.00030136,120]
[380081006,1755531541047,-400.0,0.00030136,120]
[380081007,1755531541087,-400.0,0.00030136,120]
[380081008,1755531541127,-400.0,0.00030136,120]
[380081009,1755531541171,-633.08,0.00030136,120]
[380081010,1755531541211,-755.93,0.00030136,120]
[380081011,1755531541253,-400.0,0.00030136,120]
[380081012,1755531541299,-2037.42,0.00030136,120]
[380081013,1755531541342,-1326.07,0.00030136,120]
[380081014,1755531541385,-400.0,0.00030136,120]
[380081015,1755531541431,-400.0,0.00030136,120]
[380081016,1755531541477,-400.0,0.00030136,120]
[380081017,1755531541521,-2815.14,0.00030136,120]
[380081018,1755531541564,-1448.97,0.00030136,120]
[380081019,1755531541603,-400.0,0.00030136,120]
[380081020,1755531541641,-403.67945441,0.00030136,120]
[380081021,1755531541682,-400.0,0.00030136,120]
[380081022,1755531541724,-400.0,0.00030136,120]
[380081023,1755531541769,-400.0,0.00030136,120]
[380081024,1755531541813,-400.0,0.00030136,120]
[380081025,1755531541853,-400.0,0.00030136,120]
[380081026,1755531541894,-400.0,0.00030136,120]
[380081027,1755531541936,-400.0,0.00030136,120]
[380081028,1755531541980,-400.0,0.00030136,120]
[380081029,1755531542029,-926.58,0.00030136,120]
[380081030,1755531542093,-400.22573127,0.00030136,120]
[380081031,1755531542195,-400.0,0.00030136,120]
[380081032,1755531542244,-400.0,0.00030136,120]
[380081033,1755531542292,-400.0,0.00030136,120]
[380081034,1755531542341,-400.0,0.00030136,120]
[380081035,1755531542391,-400.0,0.00030136,120]
[380081036,1755531542440,-400.0,0.00030136,120]
[380081037,1755531542485,-400.0,0.00030136,120]
[380081038,1755531542528,-400.0,0.00030136,120]
[380081039,1755531542571,-400.0,0.00030136,120]
[380081040,1755531542621,-1845.61,0.00030136,120]
[380081041,1755531542663,-382.18336957,0.00030136,120]
[380081042,1755531542707,-2916.73,0.00030136,120]
[380081043,1755531542748,-400.0,0.00030136,120]
[380081044,1755531542789,-6391.15,0.00030136,120]
[380081045,1755531542831,-694.96,0.00030136,120]
[380081046,1755531542871,-400.0,0.00030136,120]
[380081047,1755531542913,-400.0,0.00030136,120]
[380081048,1755531542955,-400.0,0.00030136,120]
[380081049,1755531542996,-400.0,0.00030136,120]
[380081050,1755531543040,-400.0,0.00030136,120]
[380081051,1755531543083,-400.0,0.00030136,120]
[380081052,1755531543126,-3235.58,0.00030136,120]
[380081053,1755531543172,-400.0,0.00030136,120]
[380081054,1755531543217,-400.0,0.00030136,120]
[380081055,1755531543265,-946.55,0.00030136,120]
[380081056,1755531543313,-1189.34,0.00030136,120]
[380081057,1755531543361,-400.0,0.00030136,120]
[380081058,1755531543406,-400.0,0.00030136,120]
[380081059,1755531543455,-400.0,0.00030136,120]
[380081060,1755531543500,-400.0,0.00030136,120]
[380081061,1755531543547,-400.0,0.00030136,120]
[380081062,1755531543938,-400.0,0.00030136,120]
[380081063,1755531543984,-400.0,0.00030136,120]
[380081064,1755531544029,-400.0,0.00030136,120]
[380081065,1755531544075,-400.0,0.00030136,120]
[380081066,1755531544119,-400.0,0.00030136,120]
[380081067,1755531544163,-7818.05,0.00030136,120]
[380081068,1755531544209,-400.0,0.00030136,120]
[380081069,1755531544254,-400.0,0.00030136,120]
[380081070,1755531544299,-400.0,0.00030136,120]
[380081071,1755531544346,-400.0,0.00030136,120]
[380081072,1755531544395,-400.0,0.00030136,120]